[Event "106th British-ch Major 2019"]
[Site "Torquay"]
[Date "2019.07.29"]
[Round "3.2"]
[White "Hagesaether, Arne"]
[Black "Graham, David B"]
[Result "1-0"]
[ECO "E92"]
[WhiteElo "2046"]
[BlackElo "2162"]
[Annotator "NA"]
[PlyCount "73"]
[EventDate "2019.07.27"]
[EventType "swiss"]
[EventCountry "GBR"]
[SourceTitle "playchess.com"]
[Source "ChessBase"]
[SourceQuality "1"]
[TimeControl "40/5400+30:1800+30"]

1. d4 {[%emt 0:01:43]} Nf6 {[%emt 0:00:00]} 2. c4 {[%emt 0:00:20]} g6 {[%emt 0:00:00]} 3. Nc3 {[%emt 0:00:51]} Bg7 {[%emt 0:00:00]} 4. Nf3 {[%emt 0:00:52]} d6 {[%emt 0:00:05]} 5. e4 {[%emt 0:01:49]} O-O {[%emt 0:00:05]} 6. h3 {[%emt 0:00:58]} e5 {[%emt 0:01:06]} 7. d5 {[%emt 0:00:50]} c6 {[%emt 0:01:51]} 8. Be3 {[%emt 0:05:04]} cxd5 {[%emt 0:00:18]} 9. cxd5 {[%emt 0:00:19]} Na6 {[%emt 0:03:39]} 10. g4 {[%emt 0:04:08]} Nc5 {[%emt 0:04:57]} 11. Nd2 {[%emt 0:01:33]} a5 {[%emt 0:02:45]} 12. Be2 {[%emt 0:01:46]} Ne8 {[%emt 0:08:32]} 13. a3 {[%emt 0:07:29]} f5 {[%emt 0:03:58]} 14. Qc2 {[%emt 0:03:06]} Bd7 {[%emt 0:08:24]} 15. O-O-O {[%emt 0:04:34]} Rc8 {[%emt 0:06:58]} 16. Kb1 {[%emt 0:18:01]} Na4 {[%emt 0:11:06]} 17. f3 {[%emt 0:07:27]} b5 {[%emt 0:08:34]} 18. Qb3 {[%emt 0:03:07]} Nc5 {[%emt 0:06:25]} 19. Bxc5 {[%emt 0:12:16]} Rxc5 {[%emt 0:00:26]} 20. h4 {[%emt 0:00:45]} fxg4 {[%emt 0:03:03]} 21. fxg4 {[%emt 0:00:57]} Rf2 {[%emt 0:00:44]} 22. g5 {[%emt 0:05:32]} Qc8 {[%emt 0:04:30]} 23. Rc1 {[%emt 0:08:54]} Nc7 {[%emt 0:05:24]} 24. Qd1 {[%emt 0:04:29]} b4 {[%emt 0:04:58]} 25. Nb3 {[%emt 0:00:09]} bxc3 {[%emt 0:01:13]} 26. Nxc5 {[%emt 0:00:06]} dxc5 {[%emt 0:03:25]} 27. Rxc3 {[%emt 0:00:30]} Nb5 {[%emt 0:03:14]} 28. Bxb5 {[%emt 0:05:15]} Bxb5 {[%emt 0:00:13]} 29. Qb3 {[%emt 0:00:42]} Qa6 {[%emt 0:03:54]} 30. Rxc5 {[%emt 0:00:36]} Bd3+ {[%emt 0:00:05]} 31. Ka1 {[%emt 0:00:17]} a4 {[%emt 0:00:54]} 32. Qb8+ {[%emt 0:00:46]} Rf8 {[%emt 0:01:23]} 33. Qb4 {[%emt 0:00:33]} Qd6 {[%emt 0:00:59]} 34. Rhc1 {[%emt 0:00:09]} Qd7 {[%emt 0:01:24]} 35. Rc7 {[%emt 0:00:23]} Rf1 {[%emt 0:00:58]} 36. Qb8+ {[%emt 0:00:33]} Bf8 {[%emt 0:00:09]} 37. Rxf1 {[%emt 0:00:13]} 1-0

[Event "106th British-ch Major 2019"]
[Site "Torquay"]
[Date "2019.07.29"]
[Round "3.3"]
[White "Pollack, Oscar"]
[Black "Modi, Kishan J"]
[Result "1-0"]
[ECO "B70"]
[WhiteElo "2088"]
[BlackElo "1923"]
[Annotator "NA"]
[PlyCount "133"]
[EventDate "2019.07.27"]
[EventType "swiss"]
[EventCountry "GBR"]
[SourceTitle "playchess.com"]
[Source "ChessBase"]
[SourceQuality "1"]
[TimeControl "40/5400+30:1800+30"]

1. e4 {[%emt 0:00:00]} c5 {[%emt 0:00:00]} 2. Nf3 {[%emt 0:00:00]} d6 {[%emt 0:00:00]} 3. d4 {[%emt 0:00:00]} cxd4 {[%emt 0:00:00]} 4. Nxd4 {[%emt 0:00:00]} Nf6 {[%emt 0:00:04]} 5. Nc3 {[%emt 0:00:00]} g6 {[%emt 0:00:03]} 6. g3 {[%emt 0:00:40]} Bg7 {[%emt 0:01:32]} 7. Bg2 {[%emt 0:00:27]} O-O {[%emt 0:00:49]} 8. O-O {[%emt 0:00:40]} Nc6 {[%emt 0:10:08]} 9. Nde2 {[%emt 0:02:03]} Bd7 {[%emt 0:04:36]} 10. a4 {[%emt 0:04:44]} Rc8 {[%emt 0:01:09]} 11. h3 {[%emt 0:01:33]} Na5 {[%emt 0:11:06]} 12. Qd3 {[%emt 0:08:37]} Be6 {[%emt 0:04:00]} 13. Rb1 {[%emt 0:11:03]} Re8 {[%emt 0:12:54]} 14. b3 {[%emt 0:06:37]} Nc6 {[%emt 0:05:21]} 15. Be3 {[%emt 0:08:21]} Nd7 {[%emt 0:07:52]} 16. f4 {[%emt 0:04:33]} Nc5 {[%emt 0:03:27]} 17. Qd1 {[%emt 0:04:26]} a5 {[%emt 0:00:09]} 18. f5 {[%emt 0:01:26]} Bd7 {[%emt 0:00:06]} 19. Nd5 {[%emt 0:02:16]} Ne5 {[%emt 0:05:50]} 20. Qd2 {[%emt 0:05:43]} Bc6 {[%emt 0:01:39]} 21. Nec3 {[%emt 0:04:51]} Ned7 {[%emt 0:07:20]} 22. Bh6 {[%emt 0:02:48]} Bxd5 {[%emt 0:05:44]} 23. Nxd5 {[%emt 0:02:36]} Bxh6 {[%emt 0:01:58]} 24. Qxh6 {[%emt 0:00:10]} Nf6 {[%emt 0:00:17]} 25. fxg6 {[%emt 0:05:21]} fxg6 {[%emt 0:00:40]} 26. Nf4 {[%emt 0:02:37]} Rf8 {[%emt 0:11:15]} 27. Nxg6 {[%emt 0:01:19]} Rf7 {[%emt 0:00:02]} 28. Nh4 {[%emt 0:05:11]} Ncd7 {[%emt 0:01:33]} 29. c4 {[%emt 0:01:03]} Ne5 {[%emt 0:00:07]} 30. Nf5 {[%emt 0:01:09]} Qb6+ {[%emt 0:01:01]} 31. Kh1 {[%emt 0:00:07]} Qc7 {[%emt 0:01:06]} 32. Qe3 {[%emt 0:01:26]} Kh8 {[%emt 0:00:20]} 33. Rbd1 {[%emt 0:02:01]} Qc5 {[%emt 0:00:57]} 34. Qxc5 {[%emt 0:01:56]} Rxc5 {[%emt 0:00:20]} 35. Nxe7 {[%emt 0:00:11]} Rxe7 {[%emt 0:00:26]} 36. Rxf6 {[%emt 0:00:10]} Nf7 {[%emt 0:00:08]} 37. Rdf1 {[%emt 0:05:07]} Kg7 {[%emt 0:00:04]} 38. R6f5 {[%emt 0:00:22]} b6 {[%emt 0:00:49]} 39. h4 {[%emt 0:01:12]} Rce5 {[%emt 0:01:10]} 40. Rxe5 {[%emt 0:01:14]} Rxe5 {[%emt 0:00:54]} 41. Rf4 {[%emt 0:31:26]} Nd8 {[%emt 0:30:21]} 42. Rf1 {[%emt 0:01:38]} Nb7 {[%emt 0:00:06]} 43. Rd1 {[%emt 0:00:34]} Kf6 {[%emt 0:00:03]} 44. Rd3 {[%emt 0:01:49]} Ke7 {[%emt 0:02:32]} 45. Kg1 {[%emt 0:00:23]} Nc5 {[%emt 0:00:17]} 46. Re3 {[%emt 0:00:01]} Rh5 {[%emt 0:00:18]} 47. Bh3 {[%emt 0:00:43]} Kf6 {[%emt 0:01:39]} 48. Bf5 {[%emt 0:00:31]} Ke5 {[%emt 0:00:42]} 49. Kf2 {[%emt 0:01:24]} Kd4 {[%emt 0:00:00]} 50. Kf3 {[%emt 0:00:00]} Rh6 {[%emt 0:00:00]} 51. Kf4 {[%emt 0:00:00]} Rf6 {[%emt 0:00:00]} 52. Rf3 {[%emt 0:00:00]} Nxe4 {[%emt 0:00:00]} 53. Kg4 {[%emt 0:00:00]} Nc5 {[%emt 0:00:00]} 54. Rf4+ {[%emt 0:00:00]} Kc3 {[%emt 0:00:00]} 55. Bxh7 {[%emt 0:00:00]} Rh6 {[%emt 0:00:00]} 56. Bf5 {[%emt 0:00:00]} Nxb3 {[%emt 0:00:00]} 57. Kg5 {[%emt 0:00:00]} Rh8 {[%emt 0:00:00]} 58. Rf3+ {[%emt 0:00:00]} Kxc4 {[%emt 0:00:00]} 59. Be6+ {[%emt 0:00:00]} d5 {[%emt 0:00:00]} 60. Bxd5+ {[%emt 0:00:00]} Kxd5 {[%emt 0:00:00]} 61. Rxb3 {[%emt 0:00:00]} Rg8+ {[%emt 0:00:00]} 62. Kf5 {[%emt 0:00:00]} Kc4 {[%emt 0:00:00]} 63. Re3 {[%emt 0:00:00]} b5 {[%emt 0:00:00]} 64. axb5 {[%emt 0:00:00]} Kxb5 {[%emt 0:00:00]} 65. h5 {[%emt 0:00:00]} a4 {[%emt 0:00:00]} 66. h6 {[%emt 0:00:00]} Kb4 {[%emt 0:00:00]} 67. h7 {[%emt 0:00:00]} 1-0

[Event "106th British-ch Major 2019"]
[Site "Torquay"]
[Date "2019.07.29"]
[Round "3.4"]
[White "Turner, Max N"]
[Black "Payne, Matthew J"]
[Result "1-0"]
[ECO "E68"]
[WhiteElo "2026"]
[BlackElo "2168"]
[Annotator "NA"]
[PlyCount "115"]
[EventDate "2019.07.27"]
[EventType "swiss"]
[EventCountry "GBR"]
[SourceTitle "playchess.com"]
[Source "ChessBase"]
[SourceQuality "1"]
[TimeControl "40/5400+30:1800+30"]

1. d4 {[%emt 0:00:00]} Nf6 {[%emt 0:00:00]} 2. c4 {[%emt 0:00:00]} g6 {[%emt 0:00:00]} 3. g3 {[%emt 0:00:16]} Bg7 {[%emt 0:00:12]} 4. Bg2 {[%emt 0:00:25]} d6 {[%emt 0:00:16]} 5. Nf3 {[%emt 0:00:11]} O-O {[%emt 0:00:11]} 6. O-O {[%emt 0:00:12]} Nbd7 {[%emt 0:00:11]} 7. Nc3 {[%emt 0:00:11]} e5 {[%emt 0:00:07]} 8. h3 {[%emt 0:00:58]} exd4 {[%emt 0:00:25]} 9. Nxd4 {[%emt 0:00:34]} Re8 {[%emt 0:00:27]} 10. e4 {[%emt 0:01:20]} a6 {[%emt 0:00:27]} 11. Be3 {[%emt 0:01:34]} Rb8 {[%emt 0:03:35]} 12. b3 {[%emt 0:03:59]} c5 {[%emt 0:11:50]} 13. Nde2 {[%emt 0:01:25]} b5 {[%emt 0:05:06]} 14. Qxd6 {[%emt 0:01:48]} b4 {[%emt 0:01:16]} 15. Na4 {[%emt 0:00:04]} Nxe4 {[%emt 0:06:32]} 16. Bxe4 {[%emt 0:00:31]} Bxa1 {[%emt 0:01:32]} 17. Rxa1 {[%emt 0:00:21]} Rxe4 {[%emt 0:00:07]} 18. Nxc5 {[%emt 0:01:09]} Re8 {[%emt 0:18:27]} 19. Rd1 {[%emt 0:05:32]} Qe7 {[%emt 0:01:32]} 20. Nxd7 {[%emt 0:35:55]} Bxd7 {[%emt 0:00:09]} 21. Nf4 {[%emt 0:00:51]} Be6 {[%emt 0:08:15]} 22. Qxe7 {[%emt 0:06:51]} Rxe7 {[%emt 0:02:25]} 23. Rd6 {[%emt 0:01:21]} Ra8 {[%emt 0:04:01]} 24. Rb6 {[%emt 0:08:20]} a5 {[%emt 0:01:40]} 25. Rb5 {[%emt 0:01:38]} Ra6 {[%emt 0:10:06]} 26. Bd4 {[%emt 0:10:23]} Bd7 {[%emt 0:00:59]} 27. Rc5 {[%emt 0:10:45]} Re4 {[%emt 0:03:41]} 28. Be3 {[%emt 0:01:51]} Bc6 {[%emt 0:01:04]} 29. Nd5 {[%emt 0:02:11]} Bxd5 {[%emt 0:01:03]} 30. Rxd5 {[%emt 0:00:21]} Kf8 {[%emt 0:01:26]} 31. Kf1 {[%emt 0:01:53]} Ke7 {[%emt 0:01:42]} 32. Ke2 {[%emt 0:00:15]} f6 {[%emt 0:03:54]} 33. Rb5 {[%emt 0:01:11]} Kd6 {[%emt 0:00:12]} 34. Kd3 {[%emt 0:00:28]} Re8 {[%emt 0:01:14]} 35. Rb7 {[%emt 0:00:33]} h5 {[%emt 0:00:49]} 36. Rg7 {[%emt 0:00:53]} g5 {[%emt 0:00:57]} 37. Rg6 {[%emt 0:01:10]} Ke5 {[%emt 0:01:33]} 38. Rg7 {[%emt 0:00:49]} Rd8+ {[%emt 0:01:38]} 39. Ke2 {[%emt 0:00:07]} Kf5 {[%emt 0:01:24]} 40. Rh7 {[%emt 0:00:30]} a4 {[%emt 0:03:10]} 41. Rb7 {[%emt 0:30:50]} axb3 {[%emt 0:30:10]} 42. Rb5+ {[%emt 0:00:00]} Kg6 {[%emt 0:00:00]} 43. axb3 {[%emt 0:00:00]} Ra2+ {[%emt 0:00:00]} 44. Kf3 {[%emt 0:00:00]} Rd3 {[%emt 0:00:00]} 45. Rxb4 {[%emt 0:00:00]} Rb2 {[%emt 0:00:00]} 46. Ke4 {[%emt 0:00:00]} Rdxb3 {[%emt 0:00:00]} 47. Rxb3 {[%emt 0:00:00]} Rxb3 {[%emt 0:00:00]} 48. Kd5 {[%emt 0:00:00]} Kf5 {[%emt 0:00:00]} 49. c5 {[%emt 0:00:00]} Rd3+ {[%emt 0:00:00]} 50. Bd4 {[%emt 0:00:00]} Ra3 {[%emt 0:00:00]} 51. c6 {[%emt 0:00:00]} Ra5+ {[%emt 0:00:00]} 52. Bc5 {[%emt 0:00:00]} h4 {[%emt 0:00:00]} 53. c7 {[%emt 0:00:00]} Ra8 {[%emt 0:00:00]} 54. gxh4 {[%emt 0:00:00]} gxh4 {[%emt 0:00:00]} 55. Be7 {[%emt 0:00:00]} Kg6 {[%emt 0:00:00]} 56. Ke6 {[%emt 0:00:00]} Re8 {[%emt 0:00:00]} 57. Kd7 {[%emt 0:00:00]} Kf7 {[%emt 0:00:00]} 58. Bd8 {[%emt 0:00:00]} 1-0

[Event "106th British-ch Major 2019"]
[Site "Torquay"]
[Date "2019.07.29"]
[Round "3.5"]
[White "Taylor, Adam A"]
[Black "Chapman, Matt"]
[Result "1-0"]
[ECO "A12"]
[WhiteElo "2168"]
[BlackElo "1957"]
[Annotator "NA"]
[PlyCount "41"]
[EventDate "2019.07.27"]
[EventType "swiss"]
[EventCountry "GBR"]
[SourceTitle "playchess.com"]
[Source "ChessBase"]
[SourceQuality "1"]
[TimeControl "40/5400+30:1800+30"]

1. Nf3 {[%emt 0:00:00]} d5 {[%emt 0:00:00]} 2. c4 {[%emt 0:00:22]} c6 {[%emt 0:00:00]} 3. b3 {[%emt 0:01:39]} Nf6 {[%emt 0:00:32]} 4. Bb2 {[%emt 0:00:05]} Bf5 {[%emt 0:02:22]} 5. g3 {[%emt 0:02:15]} e6 {[%emt 0:00:46]} 6. Bg2 {[%emt 0:00:06]} Be7 {[%emt 0:00:19]} 7. O-O {[%emt 0:00:25]} O-O {[%emt 0:00:23]} 8. d3 {[%emt 0:00:30]} h6 {[%emt 0:00:30]} 9. Nbd2 {[%emt 0:00:30]} Nbd7 {[%emt 0:00:30]} 10. Qc2 {[%emt 0:00:30]} Bh7 {[%emt 0:00:30]} 11. a3 {[%emt 0:00:30]} a5 {[%emt 0:00:30]} 12. Bc3 {[%emt 0:00:30]} b5 {[%emt 0:00:30]} 13. cxb5 {[%emt 0:00:30]} cxb5 {[%emt 0:00:30]} 14. Qb2 {[%emt 0:00:30]} b4 {[%emt 0:00:30]} 15. axb4 {[%emt 0:00:30]} axb4 {[%emt 0:00:30]} 16. Bd4 {[%emt 0:00:30]} Qc7 {[%emt 0:00:30]} 17. Rfc1 {[%emt 0:00:30]} Qb7 {[%emt 0:00:30]} 18. Ne5 {[%emt 0:00:30]} Nxe5 {[%emt 0:00:30]} 19. Bxe5 {[%emt 0:00:30]} Rfc8 {[%emt 0:00:30]} 20. Rxc8+ {[%emt 0:00:30]} Rxc8 {[%emt 0:00:30]} 21. Qd4 {[%emt 0:00:30]} 1-0

[Event "106th British-ch Major 2019"]
[Site "Torquay"]
[Date "2019.07.29"]
[Round "3.6"]
[White "Ethelontis, Alexandros N"]
[Black "Brown, Tom"]
[Result "1/2-1/2"]
[ECO "A25"]
[WhiteElo "2154"]
[BlackElo "1953"]
[Annotator "NA"]
[PlyCount "87"]
[EventDate "2019.07.27"]
[EventType "swiss"]
[EventCountry "GBR"]
[SourceTitle "playchess.com"]
[Source "ChessBase"]
[SourceQuality "1"]
[TimeControl "40/5400+30:1800+30"]

1. c4 {[%emt 0:00:00]} e5 {[%emt 0:00:09]} 2. g3 {[%emt 0:00:13]} Nc6 {[%emt 0:00:32]} 3. Nc3 {[%emt 0:00:14]} g6 {[%emt 0:00:22]} 4. Bg2 {[%emt 0:00:14]} Bg7 {[%emt 0:00:17]} 5. e3 {[%emt 0:01:59]} d6 {[%emt 0:01:13]} 6. Nge2 {[%emt 0:00:22]} Nge7 {[%emt 0:02:23]} 7. Rb1 {[%emt 0:03:19]} a5 {[%emt 0:00:51]} 8. d3 {[%emt 0:00:50]} O-O {[%emt 0:01:13]} 9. O-O {[%emt 0:00:23]} Be6 {[%emt 0:05:54]} 10. Nd5 {[%emt 0:01:15]} Qd7 {[%emt 0:04:10]} 11. a3 {[%emt 0:01:22]} f5 {[%emt 0:04:59]} 12. b4 {[%emt 0:03:32]} axb4 {[%emt 0:01:44]} 13. axb4 {[%emt 0:00:29]} Nd8 {[%emt 0:13:29]} 14. Qc2 {[%emt 0:10:48]} Nc8 {[%emt 0:03:54]} 15. e4 {[%emt 0:16:45]} c6 {[%emt 0:05:12]} 16. Ndc3 {[%emt 0:03:50]} Ne7 {[%emt 0:10:26]} 17. b5 {[%emt 0:12:27]} h6 {[%emt 0:07:57]} 18. Na4 {[%emt 0:09:24]} Qc7 {[%emt 0:06:40]} 19. Be3 {[%emt 0:03:40]} c5 {[%emt 0:05:59]} 20. Nac3 {[%emt 0:02:04]} g5 {[%emt 0:03:37]} 21. f4 {[%emt 0:02:31]} fxe4 {[%emt 0:02:08]} 22. Nxe4 {[%emt 0:06:52]} Nf5 {[%emt 0:01:36]} 23. Bf2 {[%emt 0:00:30]} exf4 {[%emt 0:01:02]} 24. gxf4 {[%emt 0:00:18]} g4 {[%emt 0:02:40]} 25. N4g3 {[%emt 0:06:05]} Nh4 {[%emt 0:02:56]} 26. Be4 {[%emt 0:01:01]} Nf5 {[%emt 0:02:01]} 27. Nxf5 {[%emt 0:06:51]} Bxf5 {[%emt 0:00:02]} 28. d4 {[%emt 0:01:40]} Bxe4 {[%emt 0:01:43]} 29. Qxe4 {[%emt 0:00:03]} cxd4 {[%emt 0:02:14]} 30. Qd5+ {[%emt 0:00:58]} Qf7 {[%emt 0:00:42]} 31. Bxd4 {[%emt 0:00:36]} Ra2 {[%emt 0:02:09]} 32. Bxg7 {[%emt 0:00:46]} Kxg7 {[%emt 0:00:29]} 33. Nd4 {[%emt 0:01:49]} Qxd5 {[%emt 0:01:53]} 34. cxd5 {[%emt 0:00:02]} Re8 {[%emt 0:02:06]} 35. f5 {[%emt 0:00:58]} Re4 {[%emt 0:00:47]} 36. Rb4 {[%emt 0:01:06]} Kf6 {[%emt 0:00:51]} 37. b6 {[%emt 0:00:59]} Rd2 {[%emt 0:00:49]} 38. Nc6 {[%emt 0:00:31]} Ree2 {[%emt 0:01:09]} 39. Rxg4 {[%emt 0:00:15]} bxc6 {[%emt 0:00:20]} 40. Rg6+ {[%emt 0:00:30]} Kf7 {[%emt 0:00:37]} 41. Rb1 {[%emt 0:07:01]} cxd5 {[%emt 0:05:56]} 42. Rxh6 {[%emt 0:06:59]} Nc6 {[%emt 0:05:39]} 43. b7 {[%emt 0:01:49]} Nd4 {[%emt 0:07:08]} 44. Rh3 {[%emt 0:02:14]} 1/2-1/2

[Event "106th British-ch Major 2019"]
[Site "Torquay"]
[Date "2019.07.29"]
[Round "3.7"]
[White "Ashworth, Michael J"]
[Black "Miller, Dominic"]
[Result "1-0"]
[ECO "D97"]
[WhiteElo "1957"]
[BlackElo "2140"]
[Annotator "NA"]
[PlyCount "69"]
[EventDate "2019.07.27"]
[EventType "swiss"]
[EventCountry "GBR"]
[SourceTitle "playchess.com"]
[Source "ChessBase"]
[SourceQuality "1"]
[TimeControl "40/5400+30:1800+30"]

1. d4 {[%emt 0:00:00]} Nf6 {[%emt 0:00:00]} 2. c4 {[%emt 0:00:00]} g6 {[%emt 0:00:00]} 3. Nc3 {[%emt 0:00:00]} d5 {[%emt 0:00:00]} 4. Nf3 {[%emt 0:00:10]} Bg7 {[%emt 0:00:02]} 5. Qb3 {[%emt 0:03:29]} dxc4 {[%emt 0:00:07]} 6. Qxc4 {[%emt 0:00:06]} O-O {[%emt 0:00:05]} 7. e4 {[%emt 0:00:23]} a6 {[%emt 0:02:32]} 8. e5 {[%emt 0:09:07]} Nfd7 {[%emt 0:02:52]} 9. e6 {[%emt 0:06:56]} fxe6 {[%emt 0:00:38]} 10. Qxe6+ {[%emt 0:01:02]} Kh8 {[%emt 0:00:06]} 11. Ng5 {[%emt 0:00:51]} Nf6 {[%emt 0:08:57]} 12. Nf7+ {[%emt 0:02:09]} Rxf7 {[%emt 0:00:05]} 13. Qxf7 {[%emt 0:00:05]} Nc6 {[%emt 0:04:44]} 14. Be3 {[%emt 0:14:07]} Nxd4 {[%emt 0:36:56]} 15. Bxd4 {[%emt 0:10:27]} Qxd4 {[%emt 0:01:20]} 16. Qc4 {[%emt 0:00:40]} Qe5+ {[%emt 0:00:05]} 17. Be2 {[%emt 0:00:43]} b5 {[%emt 0:09:32]} 18. Qd3 {[%emt 0:06:45]} b4 {[%emt 0:03:43]} 19. Nd1 {[%emt 0:04:25]} Bb7 {[%emt 0:16:07]} 20. O-O {[%emt 0:10:29]} Nd5 {[%emt 0:05:48]} 21. Bf3 {[%emt 0:03:31]} Nf4 {[%emt 0:00:10]} 22. Qe3 {[%emt 0:10:35]} Bxf3 {[%emt 0:00:07]} 23. Qxf3 {[%emt 0:00:04]} Rf8 {[%emt 0:00:04]} 24. Qc6 {[%emt 0:03:17]} Rf5 {[%emt 0:04:17]} 25. g3 {[%emt 0:00:59]} Ne2+ {[%emt 0:01:27]} 26. Kh1 {[%emt 0:01:15]} Nd4 {[%emt 0:00:07]} 27. Qg2 {[%emt 0:02:14]} Nc2 {[%emt 0:02:45]} 28. Ne3 {[%emt 0:03:10]} Nxe3 {[%emt 0:00:44]} 29. fxe3 {[%emt 0:00:06]} Qxb2 {[%emt 0:00:40]} 30. Qa8+ {[%emt 0:04:03]} Bf8 {[%emt 0:00:01]} 31. Rxf5 {[%emt 0:00:38]} Qxa1+ {[%emt 0:00:09]} 32. Kg2 {[%emt 0:00:08]} Qxa2+ {[%emt 0:00:41]} 33. Rf2 {[%emt 0:00:14]} Qxf2+ {[%emt 0:00:44]} 34. Kxf2 {[%emt 0:00:05]} Kg7 {[%emt 0:00:06]} 35. Qxa6 {[%emt 0:00:19]} 1-0

[Event "106th British-ch Major 2019"]
[Site "Torquay"]
[Date "2019.07.29"]
[Round "3.8"]
[White "Fathallah, Joe"]
[Black "Eames, Robert S"]
[Result "0-1"]
[ECO "A01"]
[WhiteElo "1952"]
[BlackElo "2136"]
[Annotator "NA"]
[PlyCount "42"]
[EventDate "2019.07.27"]
[EventType "swiss"]
[EventCountry "GBR"]
[SourceTitle "playchess.com"]
[Source "ChessBase"]
[SourceQuality "1"]
[TimeControl "40/5400+30:1800+30"]

1. b3 {[%emt 0:00:00]} e5 {[%emt 0:03:57]} 2. Bb2 {[%emt 0:00:00]} Nc6 {[%emt 0:00:24]} 3. e3 {[%emt 0:00:00]} Nf6 {[%emt 0:00:32]} 4. Nf3 {[%emt 0:02:33]} e4 {[%emt 0:01:12]} 5. Ne5 {[%emt 0:01:08]} Bd6 {[%emt 0:03:28]} 6. Nxc6 {[%emt 0:01:30]} dxc6 {[%emt 0:00:28]} 7. Be2 {[%emt 0:00:55]} Qe7 {[%emt 0:04:45]} 8. f4 {[%emt 0:01:50]} h5 {[%emt 0:02:26]} 9. Nc3 {[%emt 0:12:29]} Bf5 {[%emt 0:00:41]} 10. a4 {[%emt 0:03:50]} O-O-O {[%emt 0:01:53]} 11. Qc1 {[%emt 0:05:47]} Ng4 {[%emt 0:04:01]} 12. Ba3 {[%emt 0:03:07]} g5 {[%emt 0:03:20]} 13. h3 {[%emt 0:06:31]} gxf4 {[%emt 0:05:39]} 14. hxg4 {[%emt 0:02:19]} hxg4 {[%emt 0:00:26]} 15. Rf1 {[%emt 0:11:33]} Qh4+ {[%emt 0:08:45]} 16. Kd1 {[%emt 0:00:34]} f3 {[%emt 0:03:17]} 17. Bxd6 {[%emt 0:01:12]} Rxd6 {[%emt 0:01:21]} 18. d4 {[%emt 0:03:21]} fxg2 {[%emt 0:10:08]} 19. Rg1 {[%emt 0:00:55]} Qf2 {[%emt 0:00:11]} 20. Kd2 {[%emt 0:01:00]} Rxd4+ {[%emt 0:00:24]} 21. exd4 {[%emt 0:00:28]} e3+ {[%emt 0:00:12]} 0-1

[Event "106th British-ch Major 2019"]
[Site "Torquay"]
[Date "2019.07.29"]
[Round "3.9"]
[White "Rogacewicz, Mikolaj"]
[Black "Shaw, Peter"]
[Result "1-0"]
[ECO "A81"]
[WhiteElo "1925"]
[BlackElo "2068"]
[Annotator "NA"]
[PlyCount "63"]
[EventDate "2019.07.27"]
[EventType "swiss"]
[EventCountry "GBR"]
[SourceTitle "playchess.com"]
[Source "ChessBase"]
[SourceQuality "1"]
[TimeControl "40/5400+30:1800+30"]

1. d4 {[%emt 0:00:00]} f5 {[%emt 0:00:00]} 2. g3 {[%emt 0:00:00]} Nf6 {[%emt 0:00:00]} 3. Bg2 {[%emt 0:00:18]} e6 {[%emt 0:00:00]} 4. Nf3 {[%emt 0:00:31]} Be7 {[%emt 0:00:06]} 5. O-O {[%emt 0:00:19]} O-O {[%emt 0:00:07]} 6. b3 {[%emt 0:00:34]} a5 {[%emt 0:03:36]} 7. c4 {[%emt 0:01:58]} Ne4 {[%emt 0:03:40]} 8. Bb2 {[%emt 0:01:27]} Bf6 {[%emt 0:01:12]} 9. Nc3 {[%emt 0:04:21]} Nxc3 {[%emt 0:21:25]} 10. Bxc3 {[%emt 0:00:12]} d6 {[%emt 0:04:14]} 11. Qc2 {[%emt 0:07:50]} Nc6 {[%emt 0:08:19]} 12. Rfd1 {[%emt 0:12:01]} Qe8 {[%emt 0:01:24]} 13. e4 {[%emt 0:03:17]} e5 {[%emt 0:02:56]} 14. dxe5 {[%emt 0:03:25]} dxe5 {[%emt 0:01:16]} 15. exf5 {[%emt 0:02:45]} Qh5 {[%emt 0:05:16]} 16. Qb2 {[%emt 0:07:48]} Qxf5 {[%emt 0:11:52]} 17. Rd5 {[%emt 0:17:20]} Nb4 {[%emt 0:09:07]} 18. Nxe5 {[%emt 0:06:08]} Nxd5 {[%emt 0:01:16]} 19. Bxd5+ {[%emt 0:00:12]} Be6 {[%emt 0:12:03]} 20. g4 {[%emt 0:01:48]} Qf4 {[%emt 0:01:36]} 21. Bxe6+ {[%emt 0:00:47]} Kh8 {[%emt 0:00:01]} 22. Bf5 {[%emt 0:05:00]} Rae8 {[%emt 0:08:32]} 23. Re1 {[%emt 0:02:53]} Re7 {[%emt 0:00:14]} 24. Re4 {[%emt 0:03:00]} Qh6 {[%emt 0:01:58]} 25. f4 {[%emt 0:02:53]} Qh3 {[%emt 0:00:54]} 26. Qd2 {[%emt 0:03:49]} c6 {[%emt 0:01:23]} 27. Re3 {[%emt 0:00:49]} Qh6 {[%emt 0:00:26]} 28. Qd6 {[%emt 0:06:42]} Kg8 {[%emt 0:00:03]} 29. Be6+ {[%emt 0:01:25]} Kh8 {[%emt 0:00:06]} 30. Nf7+ {[%emt 0:00:45]} Rexf7 {[%emt 0:00:17]} 31. Bxf7 {[%emt 0:00:22]} Bxc3 {[%emt 0:01:39]} 32. Qxf8# {[%emt 0:00:11]} 1-0

[Event "106th British-ch Major 2019"]
[Site "Torquay"]
[Date "2019.07.29"]
[Round "3.10"]
[White "Foster, Timothy"]
[Black "Taylor, William J"]
[Result "1/2-1/2"]
[ECO "E73"]
[WhiteElo "1852"]
[BlackElo "2062"]
[Annotator "NA"]
[PlyCount "49"]
[EventDate "2019.07.27"]
[EventType "swiss"]
[EventCountry "GBR"]
[SourceTitle "playchess.com"]
[Source "ChessBase"]
[SourceQuality "1"]
[TimeControl "40/5400+30:1800+30"]

1. d4 {[%emt 0:00:00]} Nf6 {[%emt 0:00:00]} 2. c4 {[%emt 0:00:00]} g6 {[%emt 0:00:00]} 3. Nc3 {[%emt 0:00:00]} Bg7 {[%emt 0:00:09]} 4. e4 {[%emt 0:00:00]} d6 {[%emt 0:00:07]} 5. Be2 {[%emt 0:00:10]} O-O {[%emt 0:00:17]} 6. Be3 {[%emt 0:00:07]} e5 {[%emt 0:10:08]} 7. d5 {[%emt 0:00:21]} Na6 {[%emt 0:00:06]} 8. g4 {[%emt 0:00:15]} Nc5 {[%emt 0:11:35]} 9. f3 {[%emt 0:00:27]} a5 {[%emt 0:00:05]} 10. h4 {[%emt 0:00:11]} c6 {[%emt 0:17:22]} 11. Nh3 {[%emt 0:01:17]} cxd5 {[%emt 0:03:00]} 12. cxd5 {[%emt 0:00:05]} a4 {[%emt 0:22:23]} 13. Qd2 {[%emt 0:06:27]} Bd7 {[%emt 0:05:37]} 14. Nf2 {[%emt 0:05:19]} Qa5 {[%emt 0:03:19]} 15. Nd3 {[%emt 0:17:23]} Nxd3+ {[%emt 0:01:09]} 16. Bxd3 {[%emt 0:00:56]} b5 {[%emt 0:00:28]} 17. O-O {[%emt 0:06:32]} h5 {[%emt 0:05:02]} 18. g5 {[%emt 0:00:14]} Ne8 {[%emt 0:00:06]} 19. Rac1 {[%emt 0:08:06]} Nc7 {[%emt 0:00:29]} 20. Qf2 {[%emt 0:10:17]} Rab8 {[%emt 0:02:05]} 21. Bd2 {[%emt 0:01:42]} Qa8 {[%emt 0:08:03]} 22. f4 {[%emt 0:13:08]} f5 {[%emt 0:02:35]} 23. Qe2 {[%emt 0:08:05]} fxe4 {[%emt 0:00:43]} 24. Nxe4 {[%emt 0:01:23]} Nxd5 {[%emt 0:00:51]} 25. Nxd6 {[%emt 0:00:18]} 1/2-1/2